[Event "Mistrovství Čech mládeže 2023 - HD14"]
[Site "Harrachov, Czech Republic"]
[Date "2023.10.23"]
[Round "3.16"]
[White "Bludský, Hynek"]
[Black "Ugrenovich, Jaroslav"]
[Result "1-0"]
[TimeControl "90m + 30s"]
[WhiteElo "1547"]
[BlackElo "1277"]

1. e4 {[%clk 01:30:57]} {[%emt 00:00:02]} c5 {[%clk 01:30:52]} {[%emt
00:00:09]} 2. Nf3 {[%clk 01:31:21]} {[%emt 00:00:06]} Nc6 {[%clk 01:31:18]}
{[%emt 00:00:05]} 3. d4 {[%clk 01:31:47]} {[%emt 00:00:03]} cxd4 {[%clk
01:31:42]} {[%emt 00:00:06]} 4. Nxd4 {[%clk 01:32:14]} {[%emt 00:00:03]} g6
{[%clk 01:31:36]} {[%emt 00:00:36]} 5. Nc3 {[%clk 01:32:40]} {[%emt 00:00:05]}
Bg7 {[%clk 01:31:56]} {[%emt 00:00:10]} 6. Be3 {[%clk 01:33:04]} {[%emt
00:00:05]} Nf6 {[%clk 01:32:21]} {[%emt 00:00:06]} 7. Bc4 {[%clk 01:33:30]}
{[%emt 00:00:04]} d6 {[%clk 01:32:16]} {[%emt 00:00:35]} 8. f3 {[%clk
01:24:25]} {[%emt 00:09:35]} Qb6 {[%clk 01:32:29]} {[%emt 00:00:17]} 9. Bb5
{[%clk 01:23:15]} {[%emt 00:01:40]} Bd7 {[%clk 01:12:24]} {[%emt 00:20:35]} 10.
Nf5 {[%clk 01:22:47]} {[%emt 00:00:59]} Qc7 {[%clk 01:07:09]} {[%emt 00:05:45]}
11. Nxg7+ {[%clk 01:23:08]} {[%emt 00:00:09]} Kd8 {[%clk 01:07:28]} {[%emt
00:00:11]} 12. g4 {[%clk 01:18:56]} {[%emt 00:04:42]} Ne5 {[%clk 01:05:34]}
{[%emt 00:02:24]} 13. Bxd7 {[%clk 01:09:17]} {[%emt 00:10:09]} Nfxd7 {[%clk
01:05:47]} {[%emt 00:00:17]} 14. Kf2 {[%clk 01:07:33]} {[%emt 00:02:14]} Nc4
{[%clk 01:05:04]} {[%emt 00:01:14]} 15. Qc1 {[%clk 00:57:21]} {[%emt 00:10:42]}
Nxe3 {[%clk 01:03:30]} {[%emt 00:02:04]} 16. Qxe3 {[%clk 00:57:20]} {[%emt
00:00:31]} Ne5 {[%clk 01:02:49]} {[%emt 00:01:11]} 17. Qd4 {[%clk 00:51:38]}
{[%emt 00:06:12]} Rg8 {[%clk 01:02:19]} {[%emt 00:01:00]} 18. Rad1 {[%clk
00:46:36]} {[%emt 00:05:32]} Nc6 {[%clk 00:58:50]} {[%emt 00:03:59]} 19. Qe3
{[%clk 00:42:19]} {[%emt 00:04:47]} Rxg7 {[%clk 00:58:53]} {[%emt 00:00:26]} 20.
Nd5 {[%clk 00:42:24]} {[%emt 00:00:25]} Qa5 {[%clk 00:53:28]} {[%emt 00:05:56]}
21. Qh6 {[%clk 00:28:06]} {[%emt 00:14:48]} Rg8 {[%clk 00:52:26]} {[%emt
00:01:32]} 22. Kg3 {[%clk 00:26:29]} {[%emt 00:02:07]} Qxa2 {[%clk 00:51:21]}
{[%emt 00:01:35]} 23. Qxh7 {[%clk 00:26:17]} {[%emt 00:00:41]} Rf8 {[%clk
00:51:39]} {[%emt 00:00:13]} 24. Qg7 {[%clk 00:24:38]} {[%emt 00:02:09]} Kd7
{[%clk 00:51:04]} {[%emt 00:01:05]} 25. Qc3 {[%clk 00:24:48]} {[%emt 00:00:18]}
Qa5 {[%clk 00:50:11]} {[%emt 00:01:24]} 26. b4 {[%clk 00:24:44]} {[%emt
00:00:34]} Qd8 {[%clk 00:49:27]} {[%emt 00:01:14]} 27. b5 {[%clk 00:22:21]}
{[%emt 00:02:53]} Na5 {[%clk 00:48:12]} {[%emt 00:01:45]} 28. Ra1 {[%clk
00:22:15]} {[%emt 00:00:35]} b6 {[%clk 00:48:22]} {[%emt 00:00:20]} 29. Rxa5
{[%clk 00:22:30]} {[%emt 00:00:15]} Rc8 {[%clk 00:47:42]} {[%emt 00:01:11]} 30.
Rxa7+ {[%clk 00:22:21]} {[%emt 00:00:39]} Ke6 {[%clk 00:47:16]} {[%emt
00:00:55]} 31. Nf4# {[%clk 00:22:30]} {[%emt 00:00:20]} 1-0

[Event "Mistrovství Čech mládeže 2023 - HD14"]
[Site "Harrachov, Czech Republic"]
[Date "2023.10.23"]
[Round "3.17"]
[White "Němec, Mikuláš"]
[Black "Pogorelskiy, Boris"]
[Result "0-1"]
[TimeControl "90m + 30s"]
[WhiteElo "1154"]
[BlackElo "1541"]

1. d4 {[%clk 01:30:43]} {[%emt 00:00:17]} d5 {[%clk 01:30:44]} {[%emt
00:00:17]} 2. Nf3 {[%clk 01:31:04]} {[%emt 00:00:08]} Bf5 {[%clk 01:30:07]}
{[%emt 00:01:08]} 3. Bf4 {[%clk 01:29:03]} {[%emt 00:02:31]} c5 {[%clk
01:30:21]} {[%emt 00:00:16]} 4. e3 {[%clk 01:24:55]} {[%emt 00:04:37]} Qb6
{[%clk 01:29:48]} {[%emt 00:01:03]} 5. Qc1 {[%clk 01:23:15]} {[%emt 00:02:10]}
Nc6 {[%clk 01:29:46]} {[%emt 00:00:32]} 6. c3 {[%clk 01:22:09]} {[%emt
00:01:37]} e6 {[%clk 01:29:49]} {[%emt 00:00:27]} 7. Nbd2 {[%clk 01:20:58]}
{[%emt 00:01:41]} f6 {[%clk 01:28:40]} {[%emt 00:01:39]} 8. Nh4 {[%clk
01:08:20]} {[%emt 00:13:08]} Bg4 {[%clk 01:27:22]} {[%emt 00:01:47]} 9. Bg3
{[%clk 01:08:21]} {[%emt 00:00:29]} g5 {[%clk 01:25:17]} {[%emt 00:02:36]} 10.
Nhf3 {[%clk 01:08:36]} {[%emt 00:00:15]} Bf5 {[%emt 00:01:47]} 11. dxc5 {[%clk
01:07:07]} {[%emt 00:00:54]} Bxc5 {[%clk 01:21:17]} {[%emt 00:04:18]} 12. Nb3
{[%clk 01:07:19]} {[%emt 00:00:18]} Rd8 {[%clk 01:18:52]} {[%emt 00:02:56]} 13.
Bc7 {[%clk 01:00:35]} {[%emt 00:07:14]} Qxc7 {[%clk 01:11:26]} {[%emt
00:07:56]} 14. Nxc5 {[%clk 01:00:53]} {[%emt 00:00:12]} Kf7 {[%clk 01:08:33]}
{[%emt 00:03:23]} 15. Bd3 {[%clk 00:55:42]} {[%emt 00:05:41]} Nge7 {[%clk
01:08:30]} {[%emt 00:00:33]} 16. Bxf5 {[%clk 00:55:30]} {[%emt 00:00:42]} Nxf5
{[%clk 01:07:36]} {[%emt 00:01:25]} 17. Nb3 {[%clk 00:54:16]} {[%emt 00:01:44]}
Nd6 {[%clk 01:05:36]} {[%emt 00:02:29]} 18. O-O {[%clk 00:52:35]} {[%emt
00:02:11]} h5 {[%clk 01:04:55]} {[%emt 00:01:11]} 19. Nfd4 {[%clk 00:51:26]}
{[%emt 00:01:38]} e5 {[%clk 01:03:27]} {[%emt 00:01:59]} 20. Nxc6 {[%clk
00:51:05]} {[%emt 00:00:51]} bxc6 {[%clk 01:03:26]} {[%emt 00:00:30]} 21. f4
{[%clk 00:50:46]} {[%emt 00:00:49]} gxf4 {[%clk 01:01:40]} {[%emt 00:02:17]} 22.
exf4 {[%clk 00:50:41]} {[%emt 00:00:35]} e4 {[%clk 01:02:06]} {[%emt 00:00:04]}
23. f5 {[%clk 00:49:50]} {[%emt 00:01:21]} Rdg8 {[%clk 01:01:58]} {[%emt
00:00:38]} 24. Qf4 {[%clk 00:48:47]} {[%emt 00:01:33]} Rg4 {[%clk 01:01:44]}
{[%emt 00:00:44]} 25. Qe3 {[%clk 00:48:23]} {[%emt 00:00:53]} Nc4 {[%clk
01:01:05]} {[%emt 00:01:09]} 26. Qe2 {[%clk 00:45:00]} {[%emt 00:03:53]} Rhg8
{[%clk 01:01:03]} {[%emt 00:00:32]} 27. h3 {[%clk 00:43:04]} {[%emt 00:02:26]}
Rxg2+ {[%clk 01:01:00]} {[%emt 00:00:33]} 28. Qxg2 {[%clk 00:43:32]} {[%emt
00:00:02]} Rxg2+ {[%clk 01:01:23]} {[%emt 00:00:07]} 29. Kxg2 {[%clk 00:43:55]}
{[%emt 00:00:07]} Ne3+ {[%clk 01:01:48]} {[%emt 00:00:05]} 30. Kf2 {[%clk
00:44:08]} {[%emt 00:00:16]} Nxf1 {[%clk 01:02:08]} {[%emt 00:00:10]} 31. Rxf1
{[%clk 00:44:25]} {[%emt 00:00:13]} Qh2+ {[%clk 01:02:32]} {[%emt 00:00:07]} 32.
Ke1 {[%clk 00:43:48]} {[%emt 00:01:07]} Qxb2 {[%clk 01:02:54]} {[%emt
00:00:08]} 0-1

[Event "Mistrovství Čech mládeže 2023 - HD14"]
[Site "Harrachov, Czech Republic"]
[Date "2023.10.23"]
[Round "3.18"]
[White "Straka, René"]
[Black "Holeš, Vojta"]
[Result "1/2-1/2"]
[TimeControl "90m + 30s"]
[WhiteElo "1026"]
[BlackElo "1440"]

1. d4 {[%clk 01:30:46]} {[%emt 00:00:13]} Nf6 {[%clk 01:30:38]} {[%emt
00:00:23]} 2. c4 {[%clk 01:31:02]} {[%emt 00:00:14]} e6 {[%clk 01:30:55]}
{[%emt 00:00:13]} 3. Nc3 {[%clk 01:31:15]} {[%emt 00:00:17]} d5 {[%clk
01:30:41]} {[%emt 00:00:44]} 4. Nf3 {[%clk 01:29:37]} {[%emt 00:02:08]} c5
{[%clk 01:30:41]} {[%emt 00:00:30]} 5. e3 {[%clk 01:26:39]} {[%emt 00:03:27]}
Nc6 {[%clk 01:30:37]} {[%emt 00:00:35]} 6. Bd2 {[%clk 01:26:11]} {[%emt
00:00:57]} dxc4 {[%clk 01:29:10]} {[%emt 00:01:57]} 7. Bxc4 {[%clk 01:26:25]}
{[%emt 00:00:16]} cxd4 {[%clk 01:29:14]} {[%emt 00:00:26]} 8. exd4 {[%clk
01:25:24]} {[%emt 00:01:31]} Nxd4 {[%clk 01:28:54]} {[%emt 00:00:50]} 9. Be3
{[%clk 01:23:33]} {[%emt 00:02:20]} Nxf3+ {[%clk 01:28:25]} {[%emt 00:00:59]}
10. Qxf3 {[%clk 01:23:43]} {[%emt 00:00:20]} Bb4 {[%clk 01:28:05]} {[%emt
00:00:50]} 11. O-O {[%clk 01:21:53]} {[%emt 00:02:20]} O-O {[%clk 01:27:47]}
{[%emt 00:00:49]} 12. Ne4 {[%clk 01:18:55]} {[%emt 00:03:28]} Nxe4 {[%clk
01:26:47]} {[%emt 00:01:30]} 13. Qxe4 {[%clk 01:19:15]} {[%emt 00:00:10]} Be7
{[%clk 01:24:35]} {[%emt 00:02:43]} 14. Rfd1 {[%clk 01:18:09]} {[%emt
00:01:35]} Qa5 {[%clk 01:22:31]} {[%emt 00:02:35]} 15. Bd3 {[%clk 01:17:24]}
{[%emt 00:01:14]} f5 {[%clk 01:20:25]} {[%emt 00:02:36]} 16. Qc4 {[%clk
01:11:33]} {[%emt 00:06:21]} Qb4 {[%clk 01:15:17]} {[%emt 00:05:39]} 17. Qxb4
{[%clk 01:04:01]} {[%emt 00:08:01]} Bxb4 {[%clk 01:15:32]} {[%emt 00:00:15]} 18.
a3 {[%clk 01:03:52]} {[%emt 00:00:39]} Be7 {[%clk 01:12:53]} {[%emt 00:03:10]}
19. Rac1 {[%clk 01:02:41]} {[%emt 00:01:41]} Bf6 {[%clk 01:11:35]} {[%emt
00:01:48]} 20. Rc2 {[%clk 00:59:46]} {[%emt 00:03:25]} Rd8 {[%clk 01:08:14]}
{[%emt 00:03:51]} 21. Rcd2 {[%clk 00:57:04]} {[%emt 00:03:12]} Kf7 {[%clk
00:57:11]} {[%emt 00:11:33]} 22. h3 {[%clk 00:46:46]} {[%emt 00:10:47]} b6
{[%clk 00:55:41]} {[%emt 00:02:01]} 23. Bb5 {[%clk 00:40:19]} {[%emt 00:06:56]}
Rxd2 {[%clk 00:54:28]} {[%emt 00:01:44]} 24. Rxd2 {[%clk 00:40:40]} {[%emt
00:00:09]} g5 {[%clk 00:52:39]} {[%emt 00:02:19]} 25. Bd4 {[%clk 00:39:30]}
{[%emt 00:01:40]} Bxd4 {[%clk 00:48:08]} {[%emt 00:05:01]} 26. Rxd4 {[%clk
00:39:53]} {[%emt 00:00:06]} Ke7 {[%clk 00:45:11]} {[%emt 00:03:27]} 27. g4
{[%clk 00:36:46]} {[%emt 00:03:36]} f4 {[%clk 00:41:45]} {[%emt 00:03:57]} 28.
Bc6 {[%clk 00:34:14]} {[%emt 00:03:02]} Rb8 {[%clk 00:41:17]} {[%emt 00:00:59]}
29. h4 {[%clk 00:34:00]} {[%emt 00:00:44]} e5 {[%clk 00:40:01]} {[%emt
00:01:46]} 30. Rd5 {[%clk 00:29:38]} {[%emt 00:04:51]} gxh4 {[%clk 00:34:55]}
{[%emt 00:05:36]} 31. f3 {[%clk 00:26:32]} {[%emt 00:03:36]} Be6 {[%clk
00:23:56]} {[%emt 00:11:29]} 32. Rxe5 {[%clk 00:25:42]} {[%emt 00:01:19]} Kd6
{[%clk 00:20:58]} {[%emt 00:03:29]} 33. Re2 {[%clk 00:23:06]} {[%emt 00:03:03]}
Bxg4 {[%clk 00:20:47]} {[%emt 00:00:44]} 34. fxg4 {[%clk 00:23:05]} {[%emt
00:00:31]} Kxc6 {[%clk 00:21:09]} {[%emt 00:00:08]} 35. Rh2 {[%clk 00:23:03]}
{[%emt 00:00:31]} Rb7 {[%clk 00:20:57]} {[%emt 00:00:43]} 36. Rxh4 {[%clk
00:23:21]} {[%emt 00:00:13]} Kd5 {[%clk 00:20:20]} {[%emt 00:01:07]} 37. Kf2
{[%clk 00:22:24]} {[%emt 00:01:26]} Ke4 {[%clk 00:20:21]} {[%emt 00:00:29]} 38.
Rh1 {[%clk 00:20:15]} {[%emt 00:02:38]} f3 {[%clk 00:18:31]} {[%emt 00:02:21]}
39. Rc1 {[%clk 00:17:50]} {[%emt 00:02:54]} Rf7 {[%clk 00:17:35]} {[%emt
00:01:27]} 40. Rc4+ {[%clk 00:17:40]} {[%emt 00:00:40]} Ke5 {[%clk 00:16:45]}
{[%emt 00:01:19]} 41. a4 {[%clk 00:17:11]} {[%emt 00:01:00]} Rf4 {[%clk
00:16:37]} {[%emt 00:00:38]} 42. Rc7 {[%clk 00:15:18]} {[%emt 00:02:22]} Rxa4
{[%clk 00:15:45]} {[%emt 00:01:23]} 43. Rxh7 {[%clk 00:14:56]} {[%emt
00:00:51]} Rxg4 {[%clk 00:15:38]} {[%emt 00:00:38]} 44. Kxf3 {[%clk 00:14:54]}
{[%emt 00:00:32]} Rb4 {[%clk 00:15:24]} {[%emt 00:00:44]} 45. Rxa7 {[%clk
00:14:41]} {[%emt 00:00:42]} Kd4 {[%clk 00:14:23]} {[%emt 00:01:31]} 46. Rd7+
{[%clk 00:14:37]} {[%emt 00:00:34]} Kc4 {[%clk 00:14:33]} {[%emt 00:00:20]} 47.
Rd2 {[%clk 00:14:44]} {[%emt 00:00:23]} Kb3 {[%clk 00:14:50]} {[%emt 00:00:13]}
48. Ke2 {[%clk 00:14:10]} {[%emt 00:01:04]} Ka2 {[%clk 00:13:53]} {[%emt
00:01:28]} 49. Kd3 {[%clk 00:13:51]} {[%emt 00:00:48]} b5 {[%clk 00:14:09]}
{[%emt 00:00:15]} 50. Kc3 {[%clk 00:13:04]} {[%emt 00:01:17]} Rb3+ {[%clk
00:14:11]} {[%emt 00:00:28]} 51. Kd4 {[%clk 00:12:29]} {[%emt 00:01:04]} Rb4+
{[%clk 00:13:11]} {[%emt 00:01:31]} 52. Kc5 {[%clk 00:12:05]} {[%emt 00:00:54]}
Rb3 {[%clk 00:11:41]} {[%emt 00:02:00]} 53. Re2 {[%clk 00:11:26]} {[%emt
00:01:09]} Kb1 {[%clk 00:08:21]} {[%emt 00:03:50]} 54. Rh2 {[%clk 00:10:44]}
{[%emt 00:01:11]} 1/2-1/2

[Event "Mistrovství Čech mládeže 2023 - HD14"]
[Site "Harrachov, Czech Republic"]
[Date "2023.10.23"]
[Round "4.1"]
[White "Migalko, Dmitriy"]
[Black "Váňa, Jan"]
[Result "0-1"]
[TimeControl "90m + 30s"]
[WhiteElo "1842"]
[BlackElo "1969"]

1. c4 {[%clk 01:30:55]} {[%emt 00:00:04]} e6 {[%clk 01:29:41]} {[%emt
00:01:20]} 2. e4 {[%clk 01:31:00]} {[%emt 00:00:24]} d5 {[%clk 01:29:25]}
{[%emt 00:00:45]} 3. exd5 {[%clk 01:31:16]} {[%emt 00:00:14]} exd5 {[%clk
01:29:39]} {[%emt 00:00:16]} 4. d4 {[%clk 01:31:34]} {[%emt 00:00:12]} Nf6
{[%clk 01:28:03]} {[%emt 00:02:06]} 5. Nc3 {[%clk 01:31:37]} {[%emt 00:00:27]}
Bb4 {[%clk 01:27:11]} {[%emt 00:01:22]} 6. Nf3 {[%clk 01:30:59]} {[%emt
00:01:08]} O-O {[%clk 01:26:22]} {[%emt 00:01:19]} 7. Be2 {[%clk 01:29:27]}
{[%emt 00:02:02]} dxc4 {[%clk 01:24:48]} {[%emt 00:02:04]} 8. O-O {[%clk
01:29:06]} {[%emt 00:00:51]} Bxc3 {[%clk 01:13:24]} {[%emt 00:11:54]} 9. bxc3
{[%clk 01:29:02]} {[%emt 00:00:34]} b5 {[%clk 01:12:49]} {[%emt 00:01:05]} 10.
Bg5 {[%clk 01:24:48]} {[%emt 00:04:44]} Be6 {[%clk 00:52:06]} {[%emt 00:21:14]}
11. Ne5 {[%clk 01:19:58]} {[%emt 00:05:20]} Bd5 {[%clk 00:50:17]} {[%emt
00:02:20]} 12. a4 {[%clk 01:16:14]} {[%emt 00:04:13]} c6 {[%clk 00:47:56]}
{[%emt 00:02:51]} 13. axb5 {[%clk 01:15:40]} {[%emt 00:01:05]} cxb5 {[%clk
00:48:10]} {[%emt 00:00:16]} 14. Bf3 {[%clk 01:14:51]} {[%emt 00:01:18]} Bxf3
{[%clk 00:45:15]} {[%emt 00:03:25]} 15. Qxf3 {[%clk 01:14:57]} {[%emt
00:00:24]} Qd5 {[%clk 00:45:07]} {[%emt 00:00:37]} 16. Bxf6 {[%clk 01:12:27]}
{[%emt 00:03:01]} Qxf3 {[%clk 00:42:48]} {[%emt 00:02:49]} 17. Nxf3 {[%clk
01:12:26]} {[%emt 00:00:31]} gxf6 {[%clk 00:43:11]} {[%emt 00:00:07]} 18. Rfb1
{[%clk 01:11:59]} {[%emt 00:00:56]} a6 {[%clk 00:30:53]} {[%emt 00:12:49]} 19.
Rxb5 {[%clk 01:11:38]} {[%emt 00:00:51]} axb5 {[%clk 00:30:20]} {[%emt
00:01:02]} 20. Rxa8 {[%clk 01:11:54]} {[%emt 00:00:14]} Nc6 {[%clk 00:29:17]}
{[%emt 00:01:33]} 21. Ra6 {[%clk 01:00:00]} {[%emt 00:12:23]} Rc8 {[%clk
00:19:06]} {[%emt 00:10:43]} 22. Ne1 {[%clk 00:41:28]} {[%emt 00:19:02]} b4
{[%clk 00:13:43]} {[%emt 00:05:53]} 23. d5 {[%clk 00:39:21]} {[%emt 00:02:36]}
Nb8 {[%clk 00:11:51]} {[%emt 00:02:21]} 24. Ra4 {[%clk 00:26:51]} {[%emt
00:13:01]} b3 {[%clk 00:10:47]} {[%emt 00:01:35]} 25. Kf1 {[%clk 00:19:03]}
{[%emt 00:08:17]} Nd7 {[%clk 00:09:14]} {[%emt 00:02:03]} 26. Rb4 {[%clk
00:17:56]} {[%emt 00:01:37]} Rc5 {[%clk 00:04:40]} {[%emt 00:05:04]} 27. Ke2
{[%clk 00:17:21]} {[%emt 00:01:05]} Rxd5 {[%clk 00:02:50]} {[%emt 00:02:20]} 28.
Nf3 {[%clk 00:15:34]} {[%emt 00:02:17]} Rc5 {[%clk 00:00:50]} {[%emt 00:02:31]}
29. Nd2 {[%clk 00:14:52]} {[%emt 00:01:11]} Ne5 {[%clk 00:00:39]} {[%emt
00:00:42]} 30. f4 {[%clk 00:14:55]} {[%emt 00:00:27]} Nd3 {[%clk 00:00:34]}
{[%emt 00:00:35]} 31. Rxc4 {[%clk 00:13:27]} {[%emt 00:01:57]} Rxc4 {[%clk
00:00:32]} {[%emt 00:00:32]} 32. Nxc4 {[%clk 00:13:49]} {[%emt 00:00:08]} b2
{[%clk 00:00:35]} {[%emt 00:00:27]} 33. Nd2 {[%clk 00:13:27]} {[%emt 00:00:51]}
Nxf4+ {[%clk 00:00:42]} {[%emt 00:00:24]} 34. Kf3 {[%clk 00:12:01]} {[%emt
00:01:55]} Nd5 {[%clk 00:00:52]} {[%emt 00:00:21]} 35. Nb1 {[%clk 00:12:22]}
{[%emt 00:00:09]} f5 {[%clk 00:00:51]} {[%emt 00:00:31]} 36. c4 {[%clk
00:12:16]} {[%emt 00:00:36]} Ne7 {[%clk 00:00:56]} {[%emt 00:00:25]} 37. Kf4
{[%clk 00:07:34]} {[%emt 00:05:12]} f6 {[%clk 00:01:17]} {[%emt 00:00:09]} 38.
c5 {[%clk 00:03:02]} {[%emt 00:05:02]} Kf7 {[%clk 00:01:34]} {[%emt 00:00:12]}
39. Nc3 {[%clk 00:02:08]} {[%emt 00:01:25]} Nd5+ {[%clk 00:01:55]} {[%emt
00:00:09]} 0-1

[Event "Mistrovství Čech mládeže 2023 - HD14"]
[Site "Harrachov, Czech Republic"]
[Date "2023.10.23"]
[Round "4.2"]
[White "Roubal, Matyáš"]
[Black "Švadlenka, Michal"]
[Result "1-0"]
[TimeControl "90m + 30s"]
[WhiteElo "1884"]
[BlackElo "1651"]

1. e4 {[%clk 01:30:58]} {[%emt 00:00:01]} c5 {[%clk 01:30:56]} {[%emt
00:00:05]} 2. Nf3 {[%clk 01:31:22]} {[%emt 00:00:06]} d6 {[%clk 01:31:21]}
{[%emt 00:00:05]} 3. d4 {[%clk 01:31:46]} {[%emt 00:00:06]} cxd4 {[%clk
01:31:48]} {[%emt 00:00:03]} 4. Nxd4 {[%clk 01:32:11]} {[%emt 00:00:04]} Nf6
{[%clk 01:32:13]} {[%emt 00:00:05]} 5. Nc3 {[%clk 01:32:36]} {[%emt 00:00:05]}
g6 {[%clk 01:32:38]} {[%emt 00:00:05]} 6. Be3 {[%clk 01:32:54]} {[%emt
00:00:12]} Bg7 {[%clk 01:32:59]} {[%emt 00:00:09]} 7. f3 {[%clk 01:33:17]}
{[%emt 00:00:07]} O-O {[%clk 01:33:24]} {[%emt 00:00:05]} 8. Qd2 {[%clk
01:33:30]} {[%emt 00:00:17]} Nc6 {[%clk 01:33:46]} {[%emt 00:00:09]} 9. Bc4
{[%clk 01:33:42]} {[%emt 00:00:17]} Bd7 {[%clk 01:33:40]} {[%emt 00:00:35]} 10.
O-O-O {[%clk 01:33:59]} {[%emt 00:00:12]} Rc8 {[%clk 01:33:19]} {[%emt
00:00:52]} 11. Bb3 {[%clk 01:34:25]} {[%emt 00:00:05]} Ne5 {[%clk 01:31:44]}
{[%emt 00:02:05]} 12. Kb1 {[%clk 01:33:54]} {[%emt 00:01:01]} Nc4 {[%clk
01:31:27]} {[%emt 00:00:47]} 13. Bxc4 {[%clk 01:34:18]} {[%emt 00:00:06]} Rxc4
{[%clk 01:31:52]} {[%emt 00:00:05]} 14. g4 {[%clk 01:34:26]} {[%emt 00:00:21]}
b5 {[%clk 01:21:45]} {[%emt 00:10:37]} 15. b3 {[%clk 01:34:21]} {[%emt
00:00:35]} Rc7 {[%clk 01:20:03]} {[%emt 00:02:12]} 16. Ndxb5 {[%clk 01:32:01]}
{[%emt 00:02:50]} Rb7 {[%clk 01:19:56]} {[%emt 00:00:38]} 17. Nd4 {[%clk
01:31:47]} {[%emt 00:00:44]} a5 {[%clk 01:18:27]} {[%emt 00:01:58]} 18. Bh6
{[%clk 01:29:38]} {[%emt 00:02:38]} a4 {[%clk 01:17:28]} {[%emt 00:01:30]} 19.
Bxg7 {[%clk 01:27:30]} {[%emt 00:02:37]} Kxg7 {[%clk 01:17:40]} {[%emt
00:00:19]} 20. h4 {[%clk 01:25:33]} {[%emt 00:02:27]} axb3 {[%clk 01:16:52]}
{[%emt 00:01:18]} 21. cxb3 {[%clk 01:23:36]} {[%emt 00:02:27]} h5 {[%clk
01:14:12]} {[%emt 00:03:10]} 22. gxh5 {[%clk 01:22:43]} {[%emt 00:01:23]} Nxh5
{[%clk 01:14:37]} {[%emt 00:00:05]} 23. Rdg1 {[%emt 00:00:52]} Rh8 {[%clk
01:04:14]} {[%emt 00:10:43]} 24. Nde2 {[%clk 01:14:10]} {[%emt 00:08:51]} Be6
{[%clk 01:02:24]} {[%emt 00:02:21]} 25. f4 {[%clk 01:11:55]} {[%emt 00:02:45]}
Qb6 {[%clk 00:44:38]} {[%emt 00:18:17]} 26. f5 {[%clk 01:02:53]} {[%emt
00:09:32]} Bxb3 {[%clk 00:41:42]} {[%emt 00:03:26]} 27. axb3 {[%clk 01:03:22]}
{[%emt 00:00:01]} Qxb3+ {[%clk 00:41:54]} {[%emt 00:00:18]} 28. Kc1 {[%clk
01:03:48]} {[%emt 00:00:03]} Ra8 {[%clk 00:16:13]} {[%emt 00:26:10]} 29. Qd4+
{[%clk 01:03:25]} {[%emt 00:00:53]} Kg8 {[%clk 00:16:28]} {[%emt 00:00:15]} 30.
Kd2 {[%clk 01:03:22]} {[%emt 00:00:33]} Qb2+ {[%clk 00:13:02]} {[%emt
00:03:56]} 31. Ke3 {[%clk 01:02:49]} {[%emt 00:01:03]} Rb3 {[%clk 00:11:44]}
{[%emt 00:01:48]} 32. Rb1 {[%clk 01:00:31]} {[%emt 00:02:48]} Qa2 {[%clk
00:11:12]} {[%emt 00:01:01]} 33. Rxb3 {[%clk 01:00:53]} {[%emt 00:00:08]} Qxb3
{[%clk 00:11:40]} {[%emt 00:00:03]} 34. fxg6 {[%clk 01:01:12]} {[%emt
00:00:11]} fxg6 {[%clk 00:08:37]} {[%emt 00:03:33]} 35. Rb1 {[%clk 00:59:28]}
{[%emt 00:02:15]} Qe6 {[%clk 00:08:33]} {[%emt 00:00:34]} 36. Qd5 {[%clk
00:51:49]} {[%emt 00:08:09]} Qxd5 {[%clk 00:08:21]} {[%emt 00:00:43]} 37. Nxd5
{[%clk 00:52:10]} {[%emt 00:00:09]} e6 {[%clk 00:05:26]} {[%emt 00:03:24]} 38.
Ndc3 {[%clk 00:44:09]} {[%emt 00:08:31]} Kf7 {[%clk 00:04:29]} {[%emt
00:01:27]} 39. Rf1+ {[%clk 00:44:15]} {[%emt 00:00:24]} Kg7 {[%clk 00:04:20]}
{[%emt 00:00:40]} 40. Nf4 {[%clk 00:42:13]} {[%emt 00:02:31]} Nxf4 {[%clk
00:03:11]} {[%emt 00:01:39]} 41. Rxf4 {[%clk 00:42:39]} {[%emt 00:00:03]} Ra3
{[%clk 00:02:00]} {[%emt 00:01:41]} 42. Kd3 {[%clk 00:42:25]} {[%emt 00:00:44]}
d5 {[%clk 00:00:47]} {[%emt 00:01:43]} 43. e5 {[%clk 00:42:34]} {[%emt
00:00:21]} Ra1 {[%clk 00:00:56]} {[%emt 00:00:21]} 44. Rf6 {[%clk 00:41:33]}
{[%emt 00:01:31]} Re1 {[%clk 00:00:56]} {[%emt 00:00:29]} 45. Rxe6 {[%clk
00:41:59]} {[%emt 00:00:05]} Kf7 {[%clk 00:01:07]} {[%emt 00:00:20]} 46. Rf6+
{[%clk 00:42:25]} {[%emt 00:00:03]} Kg7 {[%clk 00:01:02]} {[%emt 00:00:35]} 47.
Kd4 {[%clk 00:42:50]} {[%emt 00:00:05]} Rg1 {[%clk 00:01:09]} {[%emt 00:00:22]}
48. Nxd5 {[%clk 00:42:18]} {[%emt 00:01:02]} Rd1+ {[%clk 00:01:32]} {[%emt
00:00:07]} 49. Kc5 {[%clk 00:42:40]} {[%emt 00:00:09]} Ra1 {[%clk 00:01:21]}
{[%emt 00:00:41]} 50. Rc6 {[%clk 00:42:51]} {[%emt 00:00:19]} Ra4 {[%clk
00:01:31]} {[%emt 00:00:20]} 51. e6 {[%clk 00:43:06]} {[%emt 00:00:14]} Rxh4
{[%clk 00:01:45]} {[%emt 00:00:16]} 52. e7 {[%clk 00:43:22]} {[%emt 00:00:14]}
Re4 {[%clk 00:01:46]} {[%emt 00:00:29]} 53. Kd6 {[%clk 00:43:44]} {[%emt
00:00:08]} Kf7 {[%clk 00:02:01]} {[%emt 00:00:16]} 54. Kd7 {[%clk 00:44:07]}
{[%emt 00:00:07]} Re5 {[%clk 00:01:59]} {[%emt 00:00:31]} 55. Rf6 {[%clk
00:44:26]} {[%emt 00:00:11]} 1-0